[Event "Early-Titled-Tuesday-Blitz-January-16-2024"]
[Site "Chess.com"]
[Date "2024.01.16"]
[Round "1"]
[White "Shuvalov"]
[Black "iturrizaga"]
[Result "1/2-1/2"]
[WhiteElo "2541"]
[BlackElo "3047"]
[TimeControl "180+1"]
[EndTime "8:07:43 PST"]
[Termination "Game drawn by stalemate"]

1. d4 {[%clk 0:03:00.9]} 1... Nf6 {[%clk 0:02:59.7]} 2. c4 {[%clk 0:03:00.6]}
2... e6 {[%clk 0:02:59.9]} 3. Nc3 {[%clk 0:03:00.1]} 3... Bb4 {[%clk 0:02:59.8]}
4. e3 {[%clk 0:02:59.7]} 4... O-O {[%clk 0:02:59.5]} 5. a3 {[%clk 0:02:59.1]}
5... Bxc3+ {[%clk 0:02:57.6]} 6. bxc3 {[%clk 0:03:00]} 6... Nc6 {[%clk
0:02:55.7]} 7. Ne2 {[%clk 0:02:59.6]} 7... b6 {[%clk 0:02:53.9]} 8. Ng3 {[%clk
0:02:59.7]} 8... Ba6 {[%clk 0:02:54]} 9. e4 {[%clk 0:02:59.5]} 9... Na5 {[%clk
0:02:54]} 10. Bg5 {[%clk 0:02:54.4]} 10... h6 {[%clk 0:02:51.3]} 11. h4 {[%clk
0:02:53.4]} 11... d6 {[%clk 0:02:45.7]} 12. e5 {[%clk 0:02:44.1]} 12... dxe5
{[%clk 0:02:45.4]} 13. Ne4 {[%clk 0:02:44.7]} 13... exd4 {[%clk 0:02:15.3]} 14.
Nxf6+ {[%clk 0:02:32.3]} 14... gxf6 {[%clk 0:02:16.2]} 15. Bxh6 {[%clk
0:02:32.5]} 15... f5 {[%clk 0:02:14.5]} 16. Rh3 {[%clk 0:02:13.4]} 16... Qf6
{[%clk 0:01:58.4]} 17. Qh5 {[%clk 0:01:47.5]} 17... f4 {[%clk 0:01:57.4]} 18.
Bd3 {[%clk 0:01:40.1]} 18... Rfd8 {[%clk 0:01:26.6]} 19. Bxf4 {[%clk 0:00:24.7]}
19... Qxf4 {[%clk 0:01:14.3]} 20. Rg3+ {[%clk 0:00:23.1]} 20... Kf8 {[%clk
0:01:13.4]} 21. Rf3 {[%clk 0:00:18.5]} 21... Qxf3 {[%clk 0:01:09.7]} 22. Qxf3
{[%clk 0:00:18]} 22... Ke7 {[%clk 0:01:02]} 23. O-O-O {[%clk 0:00:16.3]} 23...
dxc3 {[%clk 0:01:01.3]} 24. Qf4 {[%clk 0:00:14.7]} 24... Rd6 {[%clk 0:00:55.2]}
25. Qg5+ {[%clk 0:00:14.5]} 25... Kd7 {[%clk 0:00:55.2]} 26. Qg7 {[%clk
0:00:11.8]} 26... Rd8 {[%clk 0:00:51.6]} 27. Qxc3 {[%clk 0:00:09.7]} 27... Ke7
{[%clk 0:00:50.6]} 28. Bc2 {[%clk 0:00:08.9]} 28... Rxd1+ {[%clk 0:00:48.6]} 29.
Bxd1 {[%clk 0:00:09.8]} 29... Bxc4 {[%clk 0:00:47.4]} 30. g4 {[%clk 0:00:08.3]}
30... Rd3 {[%clk 0:00:47.3]} 31. Qe5 {[%clk 0:00:07.9]} 31... Rd6 {[%clk
0:00:47.4]} 32. g5 {[%clk 0:00:07.7]} 32... Bd3 {[%clk 0:00:47.2]} 33. Qf6+
{[%clk 0:00:07.2]} 33... Ke8 {[%clk 0:00:47.6]} 34. h5 {[%clk 0:00:06.9]} 34...
Nc4 {[%clk 0:00:42.4]} 35. g6 {[%clk 0:00:05.2]} 35... fxg6 {[%clk 0:00:43.3]}
36. hxg6 {[%clk 0:00:05.6]} 36... Bxg6 {[%clk 0:00:42.9]} 37. Qxg6+ {[%clk
0:00:05.6]} 37... Kd7 {[%clk 0:00:43.5]} 38. Ba4+ {[%clk 0:00:05.3]} 38... Kc8
{[%clk 0:00:43.1]} 39. Qe4 {[%clk 0:00:03.9]} 39... b5 {[%clk 0:00:36.8]} 40.
Qa8+ {[%clk 0:00:03.8]} 40... Kd7 {[%clk 0:00:37.2]} 41. Bxb5+ {[%clk
0:00:04.3]} 41... Ke7 {[%clk 0:00:37.2]} 42. Bxc4 {[%clk 0:00:04.7]} 42... Rd4
{[%clk 0:00:37.5]} 43. Qc6 {[%clk 0:00:04.8]} 43... Rd6 {[%clk 0:00:37.7]} 44.
Qxc7+ {[%clk 0:00:05]} 44... Rd7 {[%clk 0:00:38.6]} 45. Qc5+ {[%clk 0:00:05]}
45... Kf6 {[%clk 0:00:39.5]} 46. Qe3 {[%clk 0:00:05.5]} 46... Rc7 {[%clk
0:00:39.8]} 47. Qc3+ {[%clk 0:00:06.2]} 47... Ke7 {[%clk 0:00:39.8]} 48. Kd2
{[%clk 0:00:07.1]} 48... a5 {[%clk 0:00:39.5]} 49. Qd4 {[%clk 0:00:06.7]} 49...
Rd7 {[%clk 0:00:39.9]} 50. Qxd7+ {[%clk 0:00:06.9]} 50... Kxd7 {[%clk
0:00:40.7]} 51. Kd3 {[%clk 0:00:07.6]} 51... Kd6 {[%clk 0:00:40.9]} 52. Ke4
{[%clk 0:00:08.5]} 52... Kc5 {[%clk 0:00:41.2]} 53. f4 {[%clk 0:00:09.4]} 53...
Kxc4 {[%clk 0:00:41.6]} 54. Ke5 {[%clk 0:00:10.3]} 54... Kb3 {[%clk 0:00:41.4]}
55. Kxe6 {[%clk 0:00:11.2]} 55... Kxa3 {[%clk 0:00:42.2]} 56. f5 {[%clk
0:00:12.1]} 56... Kb2 {[%clk 0:00:42.3]} 57. f6 {[%clk 0:00:13]} 57... a4 {[%clk
0:00:42.6]} 58. f7 {[%clk 0:00:13.9]} 58... a3 {[%clk 0:00:43.3]} 59. f8=Q
{[%clk 0:00:14.8]} 59... a2 {[%clk 0:00:43.8]} 60. Qb4+ {[%clk 0:00:14.9]} 60...
Ka1 {[%clk 0:00:44.1]} 61. Qb3 {[%clk 0:00:14.8]} 1/2-1/2

[Event "Early-Titled-Tuesday-Blitz-January-16-2024"]
[Site "Chess.com"]
[Date "2024.01.16"]
[Round "1"]
[White "cthulhuuu"]
[Black "Sokoloco"]
[Result "1/2-1/2"]
[WhiteElo "2422"]
[BlackElo "2763"]
[TimeControl "180+1"]
[EndTime "8:07:43 PST"]
[Termination "Game drawn by repetition"]

1. e4 {[%clk 0:02:59.8]} 1... d6 {[%clk 0:03:00.3]} 2. d4 {[%clk 0:02:59.9]}
2... g6 {[%clk 0:03:01.1]} 3. Nc3 {[%clk 0:03:00.1]} 3... Bg7 {[%clk 0:03:01.8]}
4. f4 {[%clk 0:03:00.6]} 4... Nf6 {[%clk 0:03:01]} 5. Nf3 {[%clk 0:03:00.9]}
5... O-O {[%clk 0:03:01.8]} 6. e5 {[%clk 0:03:00.9]} 6... dxe5 {[%clk
0:03:01.7]} 7. dxe5 {[%clk 0:03:00.3]} 7... Qxd1+ {[%clk 0:03:00.9]} 8. Nxd1
{[%clk 0:03:01.2]} 8... Nd5 {[%clk 0:02:56.1]} 9. c4 {[%clk 0:02:57.8]} 9... Nb4
{[%clk 0:02:40.5]} 10. Ne3 {[%clk 0:02:57.6]} 10... Bf5 {[%clk 0:02:41.1]} 11.
Nxf5 {[%clk 0:02:34.4]} 11... gxf5 {[%clk 0:02:42]} 12. Kf2 {[%clk 0:02:29.6]}
12... Rd8 {[%clk 0:02:42.6]} 13. Bd2 {[%clk 0:02:23.9]} 13... N8c6 {[%clk
0:02:34.7]} 14. Bc3 {[%clk 0:01:38]} 14... e6 {[%clk 0:02:34]} 15. Be2 {[%clk
0:01:29.4]} 15... Nd3+ {[%clk 0:02:32.4]} 16. Ke3 {[%clk 0:01:19.9]} 16... Ncb4
{[%clk 0:02:26.1]} 17. Nd4 {[%clk 0:00:45.3]} 17... c5 {[%clk 0:02:14.8]} 18.
Bxd3 {[%clk 0:00:44.9]} 18... cxd4+ {[%clk 0:02:06.1]} 19. Bxd4 {[%clk
0:00:45.8]} 19... Rd7 {[%clk 0:01:20.5]} 20. Rhd1 {[%clk 0:00:24.9]} 20... Rad8
{[%clk 0:01:20]} 21. a3 {[%clk 0:00:20.3]} 21... Rxd4 {[%clk 0:00:46.4]} 22.
axb4 {[%clk 0:00:21.2]} 22... Bf8 {[%clk 0:00:47.1]} 23. Bc2 {[%clk 0:00:11.1]}
23... Rxd1 {[%clk 0:00:41.3]} 24. Rxd1 {[%clk 0:00:12]} 24... Rxd1 {[%clk
0:00:41.9]} 25. Bxd1 {[%clk 0:00:12.7]} 25... Bxb4 {[%clk 0:00:42.7]} 26. Bf3
{[%clk 0:00:09.6]} 26... b6 {[%clk 0:00:42.4]} 27. Kd3 {[%clk 0:00:09]} 27...
Bc5 {[%clk 0:00:41.5]} 28. g4 {[%clk 0:00:08.9]} 28... Kf8 {[%clk 0:00:28.3]}
29. gxf5 {[%clk 0:00:08.6]} 29... exf5 {[%clk 0:00:29.2]} 30. h3 {[%clk
0:00:07.1]} 30... Ke7 {[%clk 0:00:29.3]} 31. Bd5 {[%clk 0:00:07.4]} 31... a5
{[%clk 0:00:25.7]} 32. b3 {[%clk 0:00:07.6]} 32... Ba3 {[%clk 0:00:26.5]} 33.
Ke2 {[%clk 0:00:07.5]} 33... Bc1 {[%clk 0:00:22.9]} 34. Kf3 {[%clk 0:00:07.9]}
34... Bd2 {[%clk 0:00:23.6]} 35. Bb7 {[%clk 0:00:07.4]} 35... Kd7 {[%clk
0:00:23.7]} 36. Bd5 {[%clk 0:00:07.1]} 36... Ke7 {[%clk 0:00:24.4]} 37. Ba8
{[%clk 0:00:07.1]} 37... f6 {[%clk 0:00:25.1]} 38. exf6+ {[%clk 0:00:05.4]}
38... Kxf6 {[%clk 0:00:26]} 39. Bb7 {[%clk 0:00:05.5]} 39... Bb4 {[%clk
0:00:26.9]} 40. Bc8 {[%clk 0:00:05.8]} 40... Bc5 {[%clk 0:00:27.8]} 41. Bd7
{[%clk 0:00:06.2]} 41... h6 {[%clk 0:00:28.7]} 42. Bc8 {[%clk 0:00:06.6]} 42...
Bd6 {[%clk 0:00:29.6]} 43. Bd7 {[%clk 0:00:06.9]} 43... Be7 {[%clk 0:00:30.5]}
44. Bc8 {[%clk 0:00:07.3]} 44... Bf8 {[%clk 0:00:31.4]} 45. Bd7 {[%clk
0:00:07.8]} 45... Bd6 {[%clk 0:00:31.8]} 46. Bc8 {[%clk 0:00:08.3]} 46... Bc5
{[%clk 0:00:32.7]} 47. Bd7 {[%clk 0:00:08.8]} 47... Bb4 {[%clk 0:00:33.6]} 48.
Bc8 {[%clk 0:00:09.3]} 48... Ba3 {[%clk 0:00:34.5]} 49. Bd7 {[%clk 0:00:09.9]}
49... Bb2 {[%clk 0:00:35.4]} 50. Bc8 {[%clk 0:00:10.4]} 50... Bd4 {[%clk
0:00:36.3]} 51. Bd7 {[%clk 0:00:11]} 51... Bc5 {[%clk 0:00:37.2]} 52. Bc8 {[%clk
0:00:11.4]} 52... a4 {[%clk 0:00:38.1]} 53. bxa4 {[%clk 0:00:11.4]} 53... Bb4
{[%clk 0:00:38.8]} 54. Bd7 {[%clk 0:00:11.8]} 54... Bc5 {[%clk 0:00:39.5]} 55.
Bc8 {[%clk 0:00:12.3]} 55... Bb4 {[%clk 0:00:40.2]} 56. Bd7 {[%clk 0:00:12.8]}
56... Bd6 {[%clk 0:00:41]} 57. Bc6 {[%clk 0:00:13.2]} 57... Be7 {[%clk
0:00:41.7]} 58. Bd7 {[%clk 0:00:13.6]} 58... Bc5 {[%clk 0:00:42]} 59. Bc8 {[%clk
0:00:14]} 1/2-1/2

[Event "Early-Titled-Tuesday-Blitz-January-16-2024"]
[Site "Chess.com"]
[Date "2024.01.16"]
[Round "1"]
[White "amanmuhammethommadov"]
[Black "Louis-Paulsen-Fan"]
[Result "0-1"]
[WhiteElo "2623"]
[BlackElo "2310"]
[TimeControl "180+1"]
[EndTime "8:07:43 PST"]
[Termination "Louis-Paulsen-Fan won on time"]

1. e4 {[%clk 0:03:00.9]} 1... Nf6 {[%clk 0:02:58.9]} 2. e5 {[%clk 0:03:01]} 2...
Nd5 {[%clk 0:02:59.2]} 3. Nc3 {[%clk 0:03:00.1]} 3... Nxc3 {[%clk 0:02:58.4]} 4.
dxc3 {[%clk 0:03:01]} 4... d6 {[%clk 0:02:58.3]} 5. Nf3 {[%clk 0:03:01.2]} 5...
Nc6 {[%clk 0:02:56.2]} 6. Bb5 {[%clk 0:03:01.2]} 6... Bd7 {[%clk 0:02:51.5]} 7.
O-O {[%clk 0:03:00]} 7... Nxe5 {[%clk 0:02:41.8]} 8. Nxe5 {[%clk 0:02:54.7]}
8... dxe5 {[%clk 0:02:38.5]} 9. Bc4 {[%clk 0:02:54.4]} 9... e6 {[%clk
0:02:35.5]} 10. Qe2 {[%clk 0:02:54.3]} 10... Bd6 {[%clk 0:02:33.9]} 11. Be3
{[%clk 0:02:46.5]} 11... O-O {[%clk 0:02:32.7]} 12. Rad1 {[%clk 0:02:46.6]}
12... Qe7 {[%clk 0:02:32.4]} 13. Bd3 {[%clk 0:02:44.4]} 13... Bc6 {[%clk
0:02:28.4]} 14. b4 {[%clk 0:02:34.6]} 14... a6 {[%clk 0:02:25.9]} 15. a3 {[%clk
0:02:33.8]} 15... f5 {[%clk 0:02:20.6]} 16. f3 {[%clk 0:02:25.5]} 16... Rad8
{[%clk 0:02:11.8]} 17. Bc4 {[%clk 0:02:23.6]} 17... Kh8 {[%clk 0:02:10.5]} 18.
Rd2 {[%clk 0:02:17.4]} 18... e4 {[%clk 0:02:06.4]} 19. f4 {[%clk 0:02:13.4]}
19... e5 {[%clk 0:02:06.4]} 20. g3 {[%clk 0:02:11.3]} 20... exf4 {[%clk
0:02:03.1]} 21. gxf4 {[%clk 0:02:09.7]} 21... Bd7 {[%clk 0:01:51.4]} 22. Kh1
{[%clk 0:01:57.4]} 22... Be6 {[%clk 0:01:51.5]} 23. Rg1 {[%clk 0:01:56.8]} 23...
Rg8 {[%clk 0:01:44.6]} 24. Bxe6 {[%clk 0:01:44.5]} 24... Qxe6 {[%clk 0:01:45.5]}
25. Qh5 {[%clk 0:01:44.5]} 25... Be7 {[%clk 0:01:33.1]} 26. Rdg2 {[%clk
0:01:33.8]} 26... Bf6 {[%clk 0:01:30.7]} 27. Rg3 {[%clk 0:01:20.3]} 27... Bxc3
{[%clk 0:00:35.8]} 28. Rh3 {[%clk 0:01:03.2]} 28... h6 {[%clk 0:00:24.9]} 29.
Rg6 {[%clk 0:00:54.9]} 29... Rd1+ {[%clk 0:00:24.4]} 30. Kg2 {[%clk 0:00:54.1]}
30... Qd7 {[%clk 0:00:20.4]} 31. Kf2 {[%clk 0:00:16.9]} 31... Be1+ {[%clk
0:00:18]} 32. Ke2 {[%clk 0:00:15.7]} 32... Rd6 {[%clk 0:00:08.1]} 33. Kxe1
{[%clk 0:00:10.9]} 33... Rxg6 {[%clk 0:00:06.8]} 34. Qxg6 {[%clk 0:00:11.8]}
34... Rd8 {[%clk 0:00:06.1]} 35. Qh5 {[%clk 0:00:07.8]} 35... Qc6 {[%clk
0:00:03.8]} 0-1

[Event "Early-Titled-Tuesday-Blitz-January-16-2024"]
[Site "Chess.com"]
[Date "2024.01.16"]
[Round "1"]
[White "LeoLV10"]
[Black "Dedic8"]
[Result "1/2-1/2"]
[WhiteElo "2453"]
[BlackElo "2813"]
[TimeControl "180+1"]
[EndTime "8:07:46 PST"]
[Termination "Game drawn by repetition"]

1. e4 {[%clk 0:03:00.5]} 1... e5 {[%clk 0:02:59.6]} 2. Nf3 {[%clk 0:02:59.6]}
2... Nc6 {[%clk 0:03:00.4]} 3. Bb5 {[%clk 0:02:59.8]} 3... a6 {[%clk 0:03:01.1]}
4. Ba4 {[%clk 0:02:52.8]} 4... Nf6 {[%clk 0:03:00.2]} 5. O-O {[%clk 0:02:50.7]}
5... b5 {[%clk 0:02:59.4]} 6. Bb3 {[%clk 0:02:50.1]} 6... Bc5 {[%clk 0:02:59.2]}
7. a4 {[%clk 0:02:48]} 7... Rb8 {[%clk 0:02:57.8]} 8. c3 {[%clk 0:02:44.2]} 8...
d6 {[%clk 0:02:56.7]} 9. Re1 {[%clk 0:02:41.9]} 9... O-O {[%clk 0:02:51.5]} 10.
h3 {[%clk 0:02:40.7]} 10... h6 {[%clk 0:02:50.8]} 11. d4 {[%clk 0:02:40.6]}
11... Bb6 {[%clk 0:02:50.5]} 12. Be3 {[%clk 0:02:34.5]} 12... Re8 {[%clk
0:02:46.4]} 13. Nbd2 {[%clk 0:02:34.5]} 13... Bb7 {[%clk 0:02:33.6]} 14. axb5
{[%clk 0:02:24.7]} 14... axb5 {[%clk 0:02:33.1]} 15. Bc2 {[%clk 0:02:10]} 15...
exd4 {[%clk 0:02:27.7]} 16. Nxd4 {[%clk 0:02:05.5]} 16... Nxd4 {[%clk
0:02:01.3]} 17. Bxd4 {[%clk 0:02:05.1]} 17... Bxd4 {[%clk 0:01:55.3]} 18. cxd4
{[%clk 0:02:04.6]} 18... c5 {[%clk 0:01:55.4]} 19. dxc5 {[%clk 0:01:50.9]} 19...
dxc5 {[%clk 0:01:55.2]} 20. e5 {[%clk 0:01:51.8]} 20... Nd5 {[%clk 0:01:30.6]}
21. Nb3 {[%clk 0:01:44.3]} 21... c4 {[%clk 0:01:17.2]} 22. Nc5 {[%clk
0:01:32.8]} 22... Bc6 {[%clk 0:01:16.8]} 23. Qg4 {[%clk 0:01:24.8]} 23... Qg5
{[%clk 0:01:09.3]} 24. Qe4 {[%clk 0:01:06.5]} 24... g6 {[%clk 0:00:53.2]} 25. h4
{[%clk 0:00:48.6]} 25... Qe7 {[%clk 0:00:44.2]} 26. Qd4 {[%clk 0:00:37.9]} 26...
Rbd8 {[%clk 0:00:38.3]} 27. Ne4 {[%clk 0:00:37.9]} 27... Nb4 {[%clk 0:00:34]}
28. Qc3 {[%clk 0:00:29.4]} 28... Nxc2 {[%clk 0:00:32.6]} 29. Nf6+ {[%clk
0:00:22.7]} 29... Kg7 {[%clk 0:00:10.6]} 30. Nxe8+ {[%clk 0:00:20.4]} 30... Rxe8
{[%clk 0:00:10.1]} 31. Qxc2 {[%clk 0:00:18.1]} 31... Qxh4 {[%clk 0:00:08.3]} 32.
Qe2 {[%clk 0:00:17.7]} 32... Qg5 {[%clk 0:00:04.1]} 33. f3 {[%clk 0:00:17.8]}
33... h5 {[%clk 0:00:04.3]} 34. Qe3 {[%clk 0:00:18.2]} 34... Qg3 {[%clk
0:00:02.2]} 35. Qf2 {[%clk 0:00:18.2]} 35... Qf4 {[%clk 0:00:02.1]} 36. Qe3
{[%clk 0:00:18.5]} 36... Qg3 {[%clk 0:00:02.7]} 37. Qf2 {[%clk 0:00:18.7]} 37...
Qf4 {[%clk 0:00:03.1]} 38. Ra7 {[%clk 0:00:16.4]} 38... Bd5 {[%clk 0:00:03.5]}
39. Qe3 {[%clk 0:00:14.3]} 39... Qg3 {[%clk 0:00:03.6]} 40. Qf2 {[%clk
0:00:12.1]} 40... Qf4 {[%clk 0:00:04.1]} 41. Qe3 {[%clk 0:00:11.9]} 41... Qg3
{[%clk 0:00:04.4]} 42. Qf2 {[%clk 0:00:12.4]} 42... Qf4 {[%clk 0:00:04.8]}
1/2-1/2

[Event "Early-Titled-Tuesday-Blitz-January-16-2024"]
[Site "Chess.com"]
[Date "2024.01.16"]
[Round "1"]
[White "toninhojit"]
[Black "GMKrikor"]
[Result "0-1"]
[WhiteElo "2403"]
[BlackElo "2752"]
[TimeControl "180+1"]
[EndTime "8:07:47 PST"]
[Termination "GMKrikor won by resignation"]

1. d4 {[%clk 0:02:27.6]} 1... Nf6 {[%clk 0:02:57.9]} 2. c4 {[%clk 0:02:26.2]}
2... g6 {[%clk 0:02:57.6]} 3. Nc3 {[%clk 0:02:26.2]} 3... d5 {[%clk 0:02:57.5]}
4. cxd5 {[%clk 0:02:26.3]} 4... Nxd5 {[%clk 0:02:58.4]} 5. Bd2 {[%clk
0:02:24.1]} 5... Bg7 {[%clk 0:02:58]} 6. e4 {[%clk 0:02:24.2]} 6... Nb6 {[%clk
0:02:58.7]} 7. Be3 {[%clk 0:02:23.9]} 7... O-O {[%clk 0:02:59.2]} 8. Qd2 {[%clk
0:02:23.9]} 8... Nc6 {[%clk 0:02:53]} 9. O-O-O {[%clk 0:02:20.3]} 9... e5 {[%clk
0:02:45.9]} 10. d5 {[%clk 0:02:19.9]} 10... Nd4 {[%clk 0:02:46.3]} 11. Nf3
{[%clk 0:02:18.4]} 11... Bg4 {[%clk 0:02:42.9]} 12. Be2 {[%clk 0:02:18.6]} 12...
Bxf3 {[%clk 0:02:43.1]} 13. gxf3 {[%clk 0:02:17.5]} 13... c6 {[%clk 0:02:41.3]}
14. f4 {[%clk 0:02:16.4]} 14... Nxe2+ {[%clk 0:02:06]} 15. Qxe2 {[%clk
0:02:17.3]} 15... exf4 {[%clk 0:02:06]} 16. Bxf4 {[%clk 0:02:10.5]} 16... Bxc3
{[%clk 0:01:21]} 17. bxc3 {[%clk 0:02:10]} 17... cxd5 {[%clk 0:01:21.6]} 18.
exd5 {[%clk 0:01:43.3]} 18... Rc8 {[%clk 0:01:21.4]} 19. Kb1 {[%clk 0:01:29.4]}
19... Na4 {[%clk 0:01:20.1]} 20. Rd3 {[%clk 0:00:52.3]} 20... Nxc3+ {[%clk
0:01:15.1]} 21. Rxc3 {[%clk 0:00:52.9]} 21... Rxc3 {[%clk 0:01:15.9]} 22. Rd1
{[%clk 0:00:52.6]} 22... Re8 {[%clk 0:01:01.5]} 23. Qb2 {[%clk 0:00:52]} 23...
Rc5 {[%clk 0:00:47.7]} 24. d6 {[%clk 0:00:43.2]} 24... Qd7 {[%clk 0:00:47.6]}
25. Ka1 {[%clk 0:00:37.4]} 25... Rf5 {[%clk 0:00:44.4]} 26. Bg3 {[%clk
0:00:35.2]} 26... h5 {[%clk 0:00:32.2]} 27. h4 {[%clk 0:00:35]} 27... b5 {[%clk
0:00:29.9]} 28. Qd4 {[%clk 0:00:35.2]} 28... a5 {[%clk 0:00:29.8]} 29. Rc1
{[%clk 0:00:34.9]} 29... Rd8 {[%clk 0:00:24.6]} 30. Rc7 {[%clk 0:00:29.6]} 30...
Qe6 {[%clk 0:00:23.6]} 31. Qc3 {[%clk 0:00:27.5]} 31... Rd5 {[%clk 0:00:18.6]}
32. Re7 {[%clk 0:00:26.2]} 32... Qf5 {[%clk 0:00:12.9]} 33. Kb2 {[%clk
0:00:17.2]} 33... b4 {[%clk 0:00:10]} 34. Qe3 {[%clk 0:00:17.5]} 34... R5xd6
{[%clk 0:00:07.6]} 35. Re8+ {[%clk 0:00:16.7]} 35... Kg7 {[%clk 0:00:08]} 36.
Be5+ {[%clk 0:00:15.8]} 36... f6 {[%clk 0:00:04.1]} 37. Bxd6 {[%clk 0:00:15.9]}
37... Rxe8 {[%clk 0:00:04.2]} 38. Qxe8 {[%clk 0:00:15.1]} 38... Qxf2+ {[%clk
0:00:04.3]} 39. Kb3 {[%clk 0:00:14.3]} 39... Qf3+ {[%clk 0:00:03.8]} 40. Ka4
{[%clk 0:00:14.2]} 40... Qd1+ {[%clk 0:00:04.1]} 41. Kb5 {[%clk 0:00:11.9]}
41... Qxd6 {[%clk 0:00:05]} 42. Kxa5 {[%clk 0:00:11.3]} 42... Qe5+ {[%clk
0:00:03]} 43. Qxe5 {[%clk 0:00:10.2]} 43... fxe5 {[%clk 0:00:03.9]} 44. Kxb4
{[%clk 0:00:10.8]} 44... g5 {[%clk 0:00:04.4]} 45. a4 {[%clk 0:00:09.3]} 45...
gxh4 {[%clk 0:00:04.4]} 0-1

[Event "Early-Titled-Tuesday-Blitz-January-16-2024"]
[Site "Chess.com"]
[Date "2024.01.16"]
[Round "1"]
[White "GothamChess"]
[Black "Matols"]
[Result "1-0"]
[WhiteElo "2714"]
[BlackElo "2385"]
[TimeControl "180+1"]
[EndTime "8:07:47 PST"]
[Termination "GothamChess won on time"]

1. d4 {[%clk 0:02:56.6]} 1... d5 {[%clk 0:02:59.5]} 2. Bg5 {[%clk 0:02:55.8]}
2... h6 {[%clk 0:02:55.2]} 3. Bh4 {[%clk 0:02:55.7]} 3... c6 {[%clk 0:02:52.9]}
4. Nc3 {[%clk 0:02:55.4]} 4... g5 {[%clk 0:02:51]} 5. Bg3 {[%clk 0:02:55.5]}
5... Bg7 {[%clk 0:02:51.6]} 6. h4 {[%clk 0:02:54.3]} 6... g4 {[%clk 0:02:49.1]}
7. e3 {[%clk 0:02:48.7]} 7... Bf5 {[%clk 0:02:47.2]} 8. Bd3 {[%clk 0:02:47.6]}
8... Bxd3 {[%clk 0:02:39.2]} 9. Qxd3 {[%clk 0:02:44.7]} 9... Nd7 {[%clk
0:02:37.9]} 10. e4 {[%clk 0:02:39.4]} 10... dxe4 {[%clk 0:02:36.7]} 11. Nxe4
{[%clk 0:02:37.6]} 11... Ngf6 {[%clk 0:02:37.2]} 12. Nc3 {[%clk 0:02:24.9]}
12... Qa5 {[%clk 0:02:30]} 13. O-O-O {[%clk 0:02:18.5]} 13... Nd5 {[%clk
0:02:14.7]} 14. Nge2 {[%clk 0:02:14.6]} 14... Nxc3 {[%clk 0:02:11.7]} 15. Nxc3
{[%clk 0:02:14.5]} 15... e6 {[%clk 0:02:08.6]} 16. Kb1 {[%clk 0:02:08.7]} 16...
O-O-O {[%clk 0:02:01.9]} 17. Ne4 {[%clk 0:02:05.7]} 17... Ne5 {[%clk 0:01:44.7]}
18. Qe2 {[%clk 0:01:54.3]} 18... f5 {[%clk 0:01:26.2]} 19. Nc3 {[%clk
0:01:04.7]} 19... Nd7 {[%clk 0:01:04.6]} 20. Qxe6 {[%clk 0:01:04.6]} 20... Rhe8
{[%clk 0:00:59.9]} 21. Qf7 {[%clk 0:01:03]} 21... Bh8 {[%clk 0:00:50.1]} 22. Rd3
{[%clk 0:00:38.5]} 22... Rf8 {[%clk 0:00:37.1]} 23. Qg6 {[%clk 0:00:30.1]} 23...
Rf6 {[%clk 0:00:34.9]} 24. Qh5 {[%clk 0:00:21.6]} 24... Re6 {[%clk 0:00:32.8]}
25. Rhd1 {[%clk 0:00:19.5]} 25... Rde8 {[%clk 0:00:32.2]} 26. f3 {[%clk
0:00:17.7]} 26... gxf3 {[%clk 0:00:27]} 27. Qxf3 {[%clk 0:00:17.7]} 27... Nf6
{[%clk 0:00:17.1]} 28. Be5 {[%clk 0:00:17.8]} 28... Ne4 {[%clk 0:00:13.7]} 29.
Qxf5 {[%clk 0:00:15.2]} 29... Nxc3+ {[%clk 0:00:13.3]} 30. Rxc3 {[%clk
0:00:16.1]} 30... Bxe5 {[%clk 0:00:12.4]} 31. dxe5 {[%clk 0:00:16.3]} 31... Qxe5
{[%clk 0:00:12.3]} 32. Qd3 {[%clk 0:00:11.4]} 32... Qe2 {[%clk 0:00:11.7]} 33.
Qd7+ {[%clk 0:00:10.8]} 33... Kb8 {[%clk 0:00:12.3]} 34. Rcd3 {[%clk 0:00:09]}
34... a6 {[%clk 0:00:11]} 35. g4 {[%clk 0:00:07]} 35... Qxg4 {[%clk 0:00:10]}
36. a3 {[%clk 0:00:06]} 36... Qxh4 {[%clk 0:00:09.8]} 37. Rb3 {[%clk 0:00:04.5]}
37... b5 {[%clk 0:00:05.1]} 38. Rf3 {[%clk 0:00:03.4]} 38... Qe7 {[%clk
0:00:03.8]} 39. Qd2 {[%clk 0:00:02.3]} 39... Re2 {[%clk 0:00:03.3]} 40. Qxh6
{[%clk 0:00:02.2]} 40... Kb7 {[%clk 0:00:02.7]} 41. Qc1 {[%clk 0:00:02.6]} 41...
Re1 {[%clk 0:00:02.6]} 42. Rfd3 {[%clk 0:00:03.2]} 42... Rxd1 {[%clk 0:00:02.3]}
43. Rxd1 {[%clk 0:00:04.1]} 43... Qe3 {[%clk 0:00:02.5]} 44. Rd2 {[%clk
0:00:04.3]} 1-0